fUSD/lending_fUSD_20260115
["ID","MTS","AMOUNT","RATE_DAILY","PERIOD"]
[402097363,1768517464586,-500.0,0.0003589,10]
[402097364,1768517464595,-1782.99,0.0003589,10]
[402097365,1768517464604,-552.2,0.0003589,10]
[402097366,1768517464614,-920.59,0.0003589,10]
[402097367,1768517464623,-701.0,0.0003589,10]
[402097368,1768517464635,-602.57,0.0003589,10]
[402097369,1768517464644,-1985.44,0.0003589,10]
[402097370,1768517464654,-500.0,0.0003589,10]
[402097371,1768517464662,-941.27,0.0003589,10]
[402097372,1768517464673,-1632.9,0.0003589,10]
[402097373,1768517464682,-2396.27,0.0003589,10]
[402097374,1768517464691,-882.97,0.0003589,10]
[402097375,1768517464702,-882.45,0.0003589,10]
[402097376,1768517464711,-500.0,0.0003589,10]
[402097377,1768517464719,-500.0,0.0003589,10]
[402097378,1768517464728,-500.0,0.0003589,10]
[402097379,1768517464737,-500.0,0.0003589,10]
[402097380,1768517464746,-582.53,0.0003589,10]
[402097381,1768517464755,-1016.88,0.0003589,10]
[402097382,1768517464764,-2191.78,0.0003589,10]
[402097383,1768517464773,-943.35,0.0003589,10]
[402097384,1768517464782,-500.0,0.0003589,10]
[402097385,1768517464791,-1203.72,0.0003589,10]
[402097386,1768517464800,-500.0,0.0003589,10]
[402097387,1768517464809,-688.4,0.0003589,10]
[402097388,1768517464818,-1678.19,0.0003589,10]
[402097389,1768517464827,-747.93,0.0003589,10]
[402097390,1768517464837,-1023.83,0.0003589,10]
[402097391,1768517464846,-523.58,0.0003589,10]
[402097392,1768517464855,-500.0,0.0003589,10]
[402097393,1768517464865,-500.0,0.0003589,10]
[402097394,1768517464874,-952.66,0.0003589,10]
[402097395,1768517464883,-500.0,0.0003589,10]
[402097396,1768517464892,-500.0,0.0003589,10]
[402097397,1768517464901,-500.0,0.0003589,10]
[402097398,1768517464911,-500.0,0.0003589,10]
[402097399,1768517464920,-500.0,0.0003589,10]
[402097400,1768517464929,-500.0,0.0003589,10]
[402097401,1768517464938,-1262.5,0.0003589,10]
[402097402,1768517464947,-751.82,0.0003589,10]
[402097403,1768517464956,-1325.0,0.0003589,10]
[402097404,1768517464965,-500.0,0.0003589,10]
[402097405,1768517464974,-516.88,0.0003589,10]
[402097406,1768517464983,-500.0,0.0003589,10]
[402097407,1768517464992,-800.19,0.0003589,10]
[402097408,1768517465001,-1729.59,0.0003589,10]
[402097409,1768517465010,-1081.08,0.0003589,10]
[402097410,1768517465019,-707.72,0.0003589,10]
[402097411,1768517465028,-949.35,0.0003589,10]
[402097412,1768517465037,-500.0,0.0003589,10]
[402097413,1768517465046,-500.0,0.0003589,10]
[402097414,1768517465055,-1404.74,0.0003589,10]
[402097415,1768517465064,-500.0,0.0003589,10]
[402097416,1768517465073,-500.0,0.0003589,10]
[402097417,1768517465082,-500.0,0.0003589,10]
[402097418,1768517465093,-926.47,0.0003589,10]
[402097419,1768517465102,-1118.24,0.0003589,10]
[402097420,1768517465112,-901.23,0.0003589,10]
[402097421,1768517465122,-528.81,0.0003589,10]
[402097422,1768517465131,-500.0,0.0003589,10]
[402097423,1768517465140,-1110.36,0.0003589,10]
[402097424,1768517465149,-500.0,0.0003589,10]
[402097425,1768517465159,-2651.34,0.0003589,10]
[402097426,1768517465168,-710.69,0.0003589,10]
[402097427,1768517465177,-500.0,0.0003589,10]
[402097428,1768517465187,-732.4,0.0003589,10]
[402097429,1768517465196,-1745.16,0.0003589,10]
[402097430,1768517465206,-500.0,0.0003589,10]
[402097431,1768517465215,-777.93,0.0003589,10]
[402097432,1768517465227,-1971.51,0.0003589,10]
[402097433,1768517465237,-500.0,0.0003589,10]
[402097434,1768517465247,-667.99,0.0003589,10]
[402097435,1768517465257,-2812.04,0.0003589,10]
[402097436,1768517465267,-500.0,0.0003589,10]
[402097437,1768517465276,-1581.15,0.0003589,10]
[402097438,1768517465286,-373.26807152,0.0003589,10]
[402097439,1768517465298,-828.76,0.0003589,10]
[402097440,1768517465307,-500.0,0.0003589,10]
[402097441,1768517465317,-500.0,0.0003589,10]
[402097442,1768517465327,-1094.61,0.0003589,10]
[402097443,1768517465336,-685.71,0.0003589,10]
[402097444,1768517465345,-500.0,0.0003589,10]
[402097445,1768517465355,-500.0,0.0003589,10]
[402097446,1768517465364,-151.0,0.0003589,7]
[402097447,1768517465377,-500.0,0.0003589,2]
[402097448,1768517465395,-177.77,0.0003589,10]
[402097449,1768517465413,-500.0,0.0003589,10]
[402097450,1768517465422,-525.62,0.0003589,10]
[402097451,1768517465431,-3145.2,0.0003589,10]
[402097452,1768517465446,-500.0,0.0003589,10]
[402097453,1768517465465,-586.98,0.0003589,10]
[402097454,1768517465476,-500.0,0.0003589,10]
[402097455,1768517465486,-1602.63,0.0003589,10]
[402097456,1768517465495,-1233.74,0.0003589,10]
[402097457,1768517465505,-599.77,0.0003589,10]
[402097458,1768517465515,-688.04,0.0003589,10]
[402097459,1768517465524,-731.27,0.0003589,10]
[402097460,1768517465534,-2419.01,0.0003589,10]
[402097461,1768517465545,-724.21,0.0003589,10]
[402097462,1768517465555,-669.66,0.0003589,10]
[402097463,1768517465565,-817.28,0.0003589,10]
[402097464,1768517465575,-500.0,0.0003589,10]
[402097465,1768517465585,-1445.38,0.0003589,10]
[402097466,1768517465596,-500.0,0.0003589,10]
[402097467,1768517465607,-8931.78,0.0003589,10]
[402097468,1768517465615,-500.0,0.0003589,10]
[402097469,1768517465626,-646.98671569,0.0003589,10]
[402097470,1768517465639,-500.0,0.0003589,10]
[402097471,1768517465648,-500.0,0.0003589,10]
[402097472,1768517465657,-1638.74,0.0003589,10]
[402097473,1768517465667,-500.0,0.0003589,10]
[402097474,1768517465678,-1111.8,0.0003589,10]
[402097475,1768517465687,-500.0,0.0003589,10]
[402097476,1768517465696,-1204.07,0.0003589,10]
[402097477,1768517465709,-1743.73,0.0003589,10]
[402097478,1768517465719,-1760.06,0.0003589,10]
[402097479,1768517465729,-1278.76,0.0003589,10]
[402097480,1768517465738,-500.0,0.0003589,10]
[402097481,1768517465747,-754.14,0.0003589,10]
[402097482,1768517465950,-1150.25,0.0003589,10]
[402097483,1768517465961,-757.75,0.0003589,10]
[402097484,1768517465972,-694.57,0.0003589,10]
[402097485,1768517465981,-285.26,0.0003589,10]
[402097486,1768517465991,-500.0,0.0003589,10]
[402097487,1768517466001,-500.0,0.0003589,10]
[402097488,1768517466010,-500.0,0.0003589,10]
[402097489,1768517466019,-1189.69,0.0003589,10]
[402097490,1768517466028,-612.81,0.0003589,10]
[402097491,1768517466037,-500.0,0.0003589,10]
[402097492,1768517466047,-636.13,0.0003589,10]
[402097493,1768517466056,-500.0,0.0003589,10]
[402097494,1768517466065,-500.0,0.0003589,10]
[402097495,1768517466075,-500.0,0.0003589,10]
[402097496,1768517466083,-2408.05,0.0003589,10]
[402097497,1768517466093,-1000.0,0.0003589,10]
[402097498,1768517466104,-1870.07,0.0003589,10]
[402097499,1768517466113,-500.0,0.0003589,10]
[402097500,1768517466123,-1172.05,0.0003589,10]
[402097501,1768517466132,-768.66,0.0003589,10]
[402097502,1768517466141,-583.7,0.0003589,10]
[402097503,1768517466150,-500.0,0.0003589,10]
[402097504,1768517466160,-500.0,0.0003589,10]
[402097505,1768517466169,-500.0,0.0003589,10]
[402097506,1768517466178,-500.0,0.0003589,10]
[402097507,1768517466188,-500.0,0.0003589,10]
[402097508,1768517466197,-500.0,0.0003589,10]
[402097509,1768517466206,-620.12,0.0003589,10]
[402097510,1768517466215,-500.0,0.0003589,10]
[402097511,1768517466225,-500.0,0.0003589,10]
[402097512,1768517466234,-1498.63,0.0003589,10]
[402097513,1768517466243,-934.3,0.0003589,10]
[402097514,1768517466252,-500.0,0.0003589,10]
[402097515,1768517466262,-878.84,0.0003589,10]
[402097516,1768517466271,-597.27,0.0003589,10]
[402097517,1768517466280,-500.0,0.0003589,10]
[402097518,1768517466289,-500.0,0.0003589,10]
[402097519,1768517466298,-500.0,0.0003589,10]
[402097520,1768517466308,-1200.39,0.0003589,10]
[402097521,1768517466317,-1460.26,0.0003589,10]
[402097522,1768517466326,-2092.77,0.0003589,10]
[402097523,1768517466335,-500.0,0.0003589,10]
[402097524,1768517466344,-500.0,0.0003589,10]
[402097525,1768517466353,-500.0,0.0003589,10]
[402097526,1768517466363,-500.0,0.0003589,10]
[402097527,1768517466372,-500.0,0.0003589,10]
[402097528,1768517466381,-500.0,0.0003589,10]
[402097529,1768517466390,-500.0,0.0003589,10]
[402097530,1768517466399,-1083.74,0.0003589,10]
[402097531,1768517466408,-535.58,0.0003589,10]
[402097532,1768517466417,-1722.85,0.0003589,10]
[402097533,1768517466426,-1656.71,0.0003589,10]
[402097534,1768517466435,-500.0,0.0003589,10]
[402097535,1768517466445,-1392.93,0.0003589,10]
[402097536,1768517466454,-500.0,0.0003589,10]
[402097537,1768517466463,-1519.07,0.0003589,10]
[402097538,1768517466472,-523.21,0.0003589,10]
[402097539,1768517466481,-702.48,0.0003589,10]
[402097540,1768517466490,-500.0,0.0003589,10]
[402097541,1768517466499,-1281.81,0.0003589,10]
[402097542,1768517466508,-2843.17,0.0003589,10]
[402097543,1768517466517,-500.0,0.0003589,10]
[402097544,1768517466526,-784.41,0.0003589,10]
[402097545,1768517466536,-807.53,0.0003589,10]
[402097546,1768517466545,-500.0,0.0003589,10]
[402097547,1768517466554,-1281.16,0.0003589,10]
[402097548,1768517466563,-1747.17,0.0003589,10]
[402097549,1768517466572,-633.86,0.0003589,10]
[402097550,1768517466581,-573.52,0.0003589,10]
[402097551,1768517466590,-668.4,0.0003589,10]
[402097552,1768517466599,-3682.29,0.0003589,10]
[402097553,1768517466608,-500.0,0.0003589,10]
[402097554,1768517466617,-581.01,0.0003589,10]
[402097555,1768517466628,-683.38,0.0003589,10]
[402097556,1768517466637,-1518.29,0.0003589,10]
[402097557,1768517466647,-500.0,0.0003589,10]
[402097558,1768517466656,-500.0,0.0003589,10]
[402097559,1768517466666,-695.76,0.0003589,10]
[402097560,1768517466674,-584.86,0.0003589,10]
[402097561,1768517466683,-500.0,0.0003589,10]
[402097562,1768517466692,-1156.25,0.0003589,10]
[402097563,1768517466703,-1355.51,0.0003589,10]
[402097564,1768517466713,-1833.8,0.0003589,10]
[402097565,1768517466723,-500.0,0.0003589,10]
[402097566,1768517466733,-1715.61,0.0003589,10]
[402097567,1768517466742,-785.41,0.0003589,10]
[402097568,1768517466751,-500.0,0.0003589,10]
[402097569,1768517466760,-500.0,0.0003589,10]
[402097570,1768517466769,-500.0,0.0003589,10]
[402097571,1768517466779,-500.0,0.0003589,10]
[402097572,1768517466788,-500.0,0.0003589,10]
[402097573,1768517466797,-500.0,0.0003589,10]
[402097574,1768517466807,-1056.18,0.0003589,10]
[402097575,1768517466816,-1183.74,0.0003589,10]
[402097576,1768517466826,-500.0,0.0003589,10]
[402097577,1768517466835,-1531.28,0.0003589,10]
[402097578,1768517466845,-1171.3,0.0003589,10]
[402097579,1768517466855,-500.0,0.0003589,10]
[402097580,1768517466863,-500.0,0.0003589,10]
[402097581,1768517466872,-3718.81,0.0003589,10]
[402097582,1768517466882,-500.0,0.0003589,10]
[402097583,1768517466893,-1780.59,0.0003589,10]
[402097584,1768517466903,-709.63,0.0003589,10]
[402097585,1768517466911,-500.0,0.0003589,10]
[402097586,1768517466920,-500.0,0.0003589,10]
[402097587,1768517466929,-586.77,0.0003589,10]
[402097588,1768517466938,-1112.6,0.0003589,10]
[402097589,1768517466947,-660.49,0.0003589,10]
[402097590,1768517466956,-500.0,0.0003589,10]
[402097591,1768517466965,-500.0,0.0003589,10]
[402097592,1768517466974,-579.61,0.0003589,10]
[402097593,1768517466983,-1332.53,0.0003589,10]
[402097594,1768517466992,-500.0,0.0003589,10]
[402097595,1768517467001,-636.94721433,0.0003589,10]
[402097596,1768517467010,-616.28,0.0003589,10]
[402097597,1768517467020,-1179.11,0.0003589,10]
[402097598,1768517467029,-694.2,0.0003589,10]
[402097599,1768517467037,-824.6,0.0003589,10]
[402097600,1768517467046,-2213.72,0.0003589,10]
[402097601,1768517467055,-358.76,0.0003589,10]
[402097602,1768517467064,-500.0,0.0003589,10]
[402097603,1768517467073,-1000.0,0.00035897,7]
[402097604,1768517467082,-174.84632366,0.00035925,7]
[402097605,1768517467092,-506.0,0.00035947,11]
[402097606,1768517467101,-421.4479731,0.00036009,2]
[402097607,1768517467111,-500.0,0.00036055,2]
[402097608,1768517467119,-3385.07108812,0.00036064,2]
[402097609,1768517467129,-463.43280129,0.00036064,2]
[402097610,1768517467138,-1199.68442957,0.00036064,2]
[402097611,1768517467147,-171.56907632,0.00036064,2]
[402097612,1768517467157,-745.81082,0.0003607,74]
[402097613,1768517467167,-745.81082,0.0003607,74]
[402097614,1768517467177,-745.81083,0.0003607,74]
[402097615,1768517467186,-745.81082,0.0003607,74]
[402097616,1768517467196,-200.0,0.00036105,10]
[402097617,1768517467205,-1000.0,0.00036122,7]
[402097618,1768517467215,-1064.30625847,0.00036126,7]
[402097619,1768517467225,-2000.0,0.0003613,120]
[402097620,1768517467234,-2000.0,0.0003613,120]
[402097621,1768517467244,-2000.0,0.0003613,120]
[402097622,1768517467265,-2000.0,0.0003613,120]
[402097623,1768517467281,-751.021,0.0003613,120]
[402097624,1768517467300,-392.39437237,0.00036163,10]
[402097625,1768517467319,-500.0,0.00036163,10]
[402097626,1768517467336,-500.0,0.00036163,10]
[402097627,1768517467353,-500.0,0.00036163,10]
[402097628,1768517467372,-150.0,0.00036163,5]
[402097629,1768517467391,-500.0,0.00036163,10]
[402097630,1768517467410,-500.0,0.00036163,10]
[402097631,1768517467428,-500.0,0.00036163,10]
[402097632,1768517467448,-151.0,0.00036164,10]
[402097633,1768517467465,-637.74617238,0.00036164,10]
[402097634,1768517467478,-579.88,0.00036164,10]
[402097635,1768517467497,-555.78,0.00036164,10]
[402097636,1768517467510,-500.0,0.00036164,10]
[402097637,1768517467528,-500.0,0.00036164,10]
[402097638,1768517467540,-752.65,0.00036164,10]
[402097639,1768517467555,-1042.17,0.00036164,10]
[402097640,1768517467570,-500.0,0.00036164,10]
[402097641,1768517467585,-1273.77242218,0.00036164,2]
[402097642,1768517467600,-200.0,0.00036164,2]
[402097643,1768517467615,-983.62,0.00036164,10]
[402097644,1768517467632,-500.0,0.00036164,10]
[402097645,1768517467646,-500.0,0.00036164,10]
[402097646,1768517467660,-544.73,0.00036164,10]
[402097647,1768517467683,-500.0,0.00036164,10]
[402097648,1768517467697,-500.0,0.00036164,10]
[402097649,1768517467712,-1960.08,0.00036164,10]
[402097650,1768517467727,-440.19987194,0.00036164,10]
[402097651,1768517467740,-500.0,0.00036164,10]
[402097652,1768517467755,-680.4,0.00036164,10]
[402097653,1768517467770,-500.0,0.00036164,10]
[402097654,1768517467784,-809.31,0.00036164,10]
[402097655,1768517467798,-500.0,0.00036164,10]
[402097656,1768517467812,-500.0,0.00036164,10]
[402097657,1768517467825,-500.0,0.00036164,10]
[402097658,1768517467840,-500.0,0.00036164,10]
[402097659,1768517467854,-500.0,0.00036164,10]
[402097660,1768517467869,-557.01,0.00036164,10]
[402097661,1768517467884,-526.37,0.00036164,10]
[402097662,1768517467899,-500.0,0.00036164,10]
[402097663,1768517467913,-500.0,0.00036164,10]
[402097664,1768517467929,-1018.58,0.00036164,10]
[402097665,1768517467945,-596.68253866,0.00036164,10]
[402097666,1768517467960,-664.93,0.00036164,10]
[402097667,1768517467976,-500.0,0.00036164,10]
[402097668,1768517467990,-1030.93,0.00036164,10]
[402097669,1768517468006,-500.0,0.00036164,10]
[402097670,1768517468020,-500.0,0.00036164,10]
[402097671,1768517468035,-953.96,0.00036164,10]
[402097672,1768517468051,-741.39,0.00036164,10]
[402097673,1768517468065,-500.0,0.00036164,10]
[402097674,1768517468079,-500.0,0.00036164,10]
[402097675,1768517468095,-500.0,0.00036164,10]
[402097676,1768517468109,-568.11,0.00036164,10]
[402097677,1768517468125,-500.0,0.00036164,10]
[402097678,1768517468140,-500.0,0.00036164,10]
[402097679,1768517468154,-500.0,0.00036164,10]
[402097680,1768517468170,-557.76,0.00036164,10]
[402097681,1768517468187,-1138.36,0.00036164,10]
[402097682,1768517468202,-610.37,0.00036164,10]
[402097683,1768517468218,-1247.28,0.00036164,10]
[402097684,1768517468235,-631.95,0.00036164,10]
[402097685,1768517468251,-917.68,0.00036164,10]
[402097686,1768517468266,-500.0,0.00036164,10]
[402097687,1768517468282,-500.0,0.00036164,10]
[402097688,1768517468298,-500.0,0.00036164,10]
[402097689,1768517468318,-500.0,0.00036164,10]
[402097690,1768517468336,-376.22134969,0.00036164,10]
[402097691,1768517468352,-561.64695087,0.00036164,10]
[402097692,1768517468368,-688.78,0.00036164,10]
[402097693,1768517468384,-500.0,0.00036164,10]
[402097694,1768517468399,-500.0,0.00036164,10]
[402097695,1768517468415,-1088.0,0.00036164,10]
[402097696,1768517468430,-1775.49,0.00036164,10]
[402097697,1768517468445,-500.0,0.00036164,10]
[402097698,1768517468460,-1283.99,0.00036164,10]
[402097699,1768517468475,-500.0,0.00036164,10]
[402097700,1768517468490,-500.0,0.00036164,10]
[402097701,1768517468506,-936.07,0.00036164,10]
[402097702,1768517468521,-1168.85,0.00036164,10]
[402097703,1768517468537,-500.0,0.00036164,10]
[402097704,1768517468552,-675.28,0.00036164,10]
[402097705,1768517468567,-500.0,0.00036164,10]
[402097706,1768517468583,-500.0,0.00036164,10]
[402097707,1768517468598,-534.53985824,0.00036164,10]
[402097708,1768517468613,-1055.44,0.00036164,10]
[402097709,1768517468631,-401.98,0.00036164,10]
[402097710,1768517468647,-500.0,0.00036164,10]
[402097711,1768517468663,-500.0,0.00036164,10]
[402097712,1768517468678,-554.49,0.00036164,10]
[402097713,1768517468693,-647.02,0.00036164,10]
[402097714,1768517468711,-588.55206952,0.00036164,10]
[402097715,1768517468727,-774.3,0.00036164,10]
[402097716,1768517468741,-495.9628108,0.00036164,10]
[402097717,1768517468756,-655.59,0.00036164,10]
[402097718,1768517468771,-500.0,0.00036164,10]
[402097719,1768517468787,-500.0,0.00036164,10]
[402097720,1768517468804,-500.0,0.00036164,10]
[402097721,1768517468821,-500.0,0.00036164,10]
[402097722,1768517468830,-500.0,0.00036164,10]
[402097723,1768517468840,-625.96,0.00036164,10]
[402097724,1768517468850,-1030.71,0.00036164,10]
[402097725,1768517468860,-500.0,0.00036164,10]
[402097726,1768517468869,-500.0,0.00036164,10]
[402097727,1768517468879,-500.0,0.00036164,10]
[402097728,1768517468888,-500.0,0.00036164,10]
[402097729,1768517468898,-500.0,0.00036164,10]
[402097730,1768517468907,-500.0,0.00036164,10]
[402097731,1768517468917,-515.67,0.00036164,10]
[402097732,1768517468928,-500.0,0.00036164,10]
[402097733,1768517468938,-689.83,0.00036164,10]
[402097734,1768517468951,-605.58,0.00036164,10]
[402097735,1768517468960,-500.0,0.00036164,10]
[402097736,1768517468970,-986.08,0.00036164,10]
[402097737,1768517468981,-500.0,0.00036164,10]
[402097738,1768517468991,-500.0,0.00036164,10]
[402097739,1768517469001,-500.0,0.00036164,10]
[402097740,1768517469010,-649.15,0.00036164,10]
[402097741,1768517469020,-500.0,0.00036164,10]
[402097742,1768517469030,-639.45949413,0.00036164,10]
[402097743,1768517469039,-1358.1,0.00036164,10]
[402097744,1768517469049,-500.0,0.00036164,10]
[402097745,1768517469059,-671.77,0.00036164,10]
[402097746,1768517469068,-500.0,0.00036164,10]
[402097747,1768517469077,-1147.26,0.00036164,10]
[402097748,1768517469087,-345.55718336,0.00036164,10]
[402097749,1768517469096,-500.0,0.00036164,10]
[402097750,1768517469105,-725.53,0.00036164,10]
[402097751,1768517469115,-678.39,0.00036164,10]
[402097752,1768517469124,-500.0,0.00036164,10]
[402097753,1768517469134,-500.0,0.00036164,10]
[402097754,1768517469144,-500.0,0.00036164,10]
[402097755,1768517469155,-612.34,0.00036164,10]
[402097756,1768517469164,-500.0,0.00036164,10]
[402097757,1768517469174,-501.16,0.00036164,10]
[402097758,1768517469183,-500.0,0.00036164,10]
[402097759,1768517469193,-574.59,0.00036164,10]
[402097760,1768517469202,-500.0,0.00036164,10]
[402097761,1768517469717,-635.66,0.00036164,10]
[402097762,1768517469751,-500.0,0.00036164,10]
[402097763,1768517469777,-500.0,0.00036164,10]
[402097764,1768517469794,-500.0,0.00036164,10]
[402097765,1768517469806,-500.0,0.00036164,10]
[402097766,1768517469815,-500.0,0.00036164,10]
[402097767,1768517469824,-500.0,0.00036164,10]
[402097768,1768517469835,-500.0,0.00036164,10]
[402097769,1768517469845,-907.4,0.00036164,10]
[402097770,1768517469854,-500.0,0.00036164,120]
[402097771,1768517469864,-650.48,0.00036164,10]
[402097772,1768517469873,-500.0,0.00036164,10]
[402097773,1768517469883,-500.0,0.00036164,10]
[402097774,1768517469892,-500.0,0.00036164,10]
[402097775,1768517469901,-500.0,0.00036164,10]
[402097776,1768517469915,-500.0,0.00036164,10]
[402097777,1768517469925,-261.40146882,0.00036164,10]
[402097778,1768517469934,-500.0,0.00036164,10]
[402097779,1768517469944,-1171.76,0.00036164,10]
[402097780,1768517469953,-928.17,0.00036164,10]
[402097781,1768517469963,-500.0,0.00036164,10]
[402097782,1768517469973,-500.0,0.00036164,10]
[402097783,1768517469983,-973.55,0.00036164,10]
[402097784,1768517469993,-500.0,0.00036164,10]
[402097785,1768517470002,-1557.23,0.00036164,10]
[402097786,1768517470012,-500.0,0.00036164,10]
[402097787,1768517470022,-500.0,0.00036164,10]
[402097788,1768517470031,-901.89,0.00036164,10]
[402097789,1768517470042,-570.21,0.00036164,10]
[402097790,1768517470051,-500.0,0.00036164,10]
[402097791,1768517470061,-500.0,0.00036164,10]
[402097792,1768517470071,-549.08,0.00036164,10]
[402097793,1768517470081,-502.83,0.00036164,10]
[402097794,1768517470091,-574.90428103,0.00036164,10]
[402097795,1768517470101,-664.95,0.00036164,10]
[402097796,1768517470111,-500.0,0.00036164,10]
[402097797,1768517470121,-500.0,0.00036164,10]
[402097798,1768517470131,-620.84,0.00036164,10]
[402097799,1768517470140,-500.0,0.00036164,10]
[402097800,1768517470150,-930.0,0.00036164,10]
[402097801,1768517470160,-500.0,0.00036164,10]
[402097802,1768517470169,-500.0,0.00036164,10]
[402097803,1768517470179,-500.0,0.00036164,10]
[402097804,1768517470189,-500.0,0.00036164,10]
[402097805,1768517470199,-611.59,0.00036164,10]
[402097806,1768517470209,-500.0,0.00036164,10]
[402097807,1768517470219,-843.01,0.00036164,10]
[402097808,1768517470228,-500.0,0.00036164,10]
[402097809,1768517470238,-581.65,0.00036164,10]
[402097810,1768517470247,-500.0,0.00036164,10]
[402097811,1768517470257,-500.0,0.00036164,10]
[402097812,1768517470267,-500.0,0.00036164,10]
[402097813,1768517470276,-500.0,0.00036164,10]
[402097814,1768517470286,-945.88,0.00036164,10]
[402097815,1768517470296,-860.28,0.00036164,10]
[402097816,1768517470305,-500.0,0.00036164,10]
[402097817,1768517470315,-500.0,0.00036164,10]
[402097818,1768517470325,-825.03,0.00036164,10]
[402097819,1768517470335,-500.0,0.00036164,10]
[402097820,1768517470344,-641.64,0.00036164,10]
[402097821,1768517470353,-500.0,0.00036164,10]
[402097822,1768517470364,-989.17,0.00036164,10]
[402097823,1768517470373,-1173.17,0.00036164,10]
[402097824,1768517470383,-500.0,0.00036164,10]
[402097825,1768517470392,-500.0,0.00036164,10]
[402097826,1768517470401,-500.0,0.00036164,10]
[402097827,1768517470410,-663.95,0.00036164,10]
[402097828,1768517470420,-523.73,0.00036164,10]
[402097829,1768517470430,-1510.57,0.00036164,10]
[402097830,1768517470440,-847.72,0.00036164,10]
[402097831,1768517470450,-941.74,0.00036164,10]
[402097832,1768517470459,-500.0,0.00036164,10]
[402097833,1768517470473,-500.0,0.00036164,10]
[402097834,1768517470482,-890.13,0.00036164,10]
[402097835,1768517470492,-500.0,0.00036164,10]
[402097836,1768517470501,-1675.63,0.00036164,10]
[402097837,1768517470510,-500.0,0.00036164,10]
[402097838,1768517470520,-1269.7,0.00036164,10]
[402097839,1768517470529,-1012.73,0.00036164,10]
[402097840,1768517470539,-868.69,0.00036164,10]
[402097841,1768517470548,-500.0,0.00036164,10]
[402097842,1768517470559,-500.0,0.00036164,10]
[402097843,1768517470568,-624.53,0.00036164,10]
[402097844,1768517470578,-500.0,0.00036164,10]
[402097845,1768517470587,-500.0,0.00036164,10]
[402097846,1768517470597,-500.0,0.00036164,10]
[402097847,1768517470607,-500.0,0.00036164,10]
[402097848,1768517470617,-614.76,0.00036164,10]
[402097849,1768517470627,-691.89,0.00036164,10]
[402097850,1768517470639,-500.0,0.00036164,10]
[402097851,1768517470648,-500.0,0.00036164,10]
[402097852,1768517470658,-500.0,0.00036164,10]
[402097853,1768517470668,-500.0,0.00036164,10]
[402097854,1768517470679,-1213.38,0.00036164,10]
[402097855,1768517470688,-500.0,0.00036164,10]
[402097856,1768517470698,-739.32,0.00036164,10]
[402097857,1768517470709,-876.76,0.00036164,10]
[402097858,1768517470718,-500.0,0.00036164,10]
[402097859,1768517470728,-1256.58,0.00036164,10]
[402097860,1768517470738,-500.0,0.00036164,10]
[402097861,1768517470747,-500.0,0.00036164,10]
[402097862,1768517470757,-1355.47,0.00036164,10]